Cogmind - Beta 11.1 @@@ ROGUE MODE // 2022.05.30 @ 01:13:42 Player: Lyra Result: Self-destructed Performance ------------- Evolutions (8) 4000 Regions Visited (24) 4800 Robots Destroyed (103) 515 Value Destroyed (3631) 3631 Prototype IDs (19) 380 Alien Tech Used (6) 1200 Bonus (7525) 7525 TOTAL SCORE: 22051 Bonus ------- High Alert Combat Kills 469 Follower Combat Kills 2166 Entered Garrisons 200 Used RIF Installer 500 Entered DSFs 500 Network Hubs Disabled 400 Met Zhirov 300 Built Enhanced Grunts 300 A7 Reached Mainframe 300 Met R17 at Cetus 500 Read Decrypted Archives 300 Met R17 at Research 2000 Friendly Fire -410 Cogmind --------- Core Integrity 1143/1450 Matter 7/300 Energy 42/100 System Corruption 0% Temperature Cool (0) Movement Hovering (150) Ox2 Location -2/Research Parts ------- > --- POWER (3) -------- (None) > --- PROPULSION (10) -- Gyrokinetic Inverter > --- UTILITY (8) ------ Large Storage Unit Gravity Neutralizer Advanced Visual Processing Unit Improved Signal Interpreter > --- WEAPON (2) ------- Plasma Lance > --- INVENTORY (15) --- Matter Drive Field Propulsion Array Point Defense System Enhanced Nova Cannon Fusion Bomb Launcher Fusion Bomb Launcher Peak State ------------ > --- POWER ------------ Backup Power I Particle Reactor Micro Antimatter Reactor > --- PROPULSION ------- Backup Propulsion I Gyrokinetic Inverter Improved Antigrav System Improved Antigrav System Impulse Thruster Diametric Drive Q-thruster Q-thruster Impulse Thruster Array > --- UTILITY ---------- Advanced Visual Processing Unit Improved Signal Interpreter Advanced Reaction Control System Centrium Medium Armor Plating Graphene Brace Improved Focal Shield > --- WEAPON ----------- Plasma Lance Plasma Lance > --- INVENTORY -------- Power Amplifier Large Storage Unit Gravity Neutralizer Subatomic Replicator Micro-nuke Launcher [Rating: 139] Favorites ----------- Power Light Antimatter Reactor Engine Light Angular Momentum Engine Power Core Light Fission Core Reactor Light Antimatter Reactor Propulsion Improved Cesium-ion Thruster Leg Carbon-fiber Leg Hover Unit Gravmag System Flight Unit Improved Cesium-ion Thruster Utility Advanced Visual Processing Unit Device Advanced Weight Redist. System Storage Medium Storage Unit Processor Advanced Visual Processing Unit Hackware System Shield Protection Improved Medium Armor Plating Artifact Phase Redirector Weapon Plasma Lance Energy Gun Spread Laser Energy Cannon Matter Neutralizer Ballistic Gun Assault Rifle Ballistic Cannon Bore Cannon Launcher Precision Rocket Launcher Special Weapon Remote Datajack Impact Weapon Impact Mace Slashing Weapon Scythe Piercing Weapon Plasma Lance Build | -11 -10 -10 -9 -8 -8 -8 -7 -7 -7 -7 -7 -7 -6 -6 -6 -5 -5 -5 -5 -5 -4 -3 -3 -2 ------- Run | Scr Mat Min Mat Mat Sto Gar Fac Was Fac Low Low Zio Pro Fac DSF Fac Ext Cet Arc Hub Fac Res Qua Res Slots Evolved 16 | . . . 2 2 . . 2 . . . . . . 2 . 2 . . . . 2 2 . 2 Power 2 | . . . . 1 . . . . . . . . . . . . . . . . 1 . . . Propulsion 8 | . . . 2 1 . . 1 . . . . . . 1 . 2 . . . . . 1 . . Utility 6 | . . . . . . . 1 . . . . . . 1 . . . . . . 1 1 . 2 Weapon . | . . . . . . . . . . . . . . . . . . . . . . . . . Parts Attached 317 | 6 8 5 23 8 4 16 27 3 38 1 2 . 1 3 7 7 50 5 . 7 20 38 34 4 Power 40 | 1 1 2 1 3 . 2 5 . 3 . . . . 1 . . 6 . . 1 . 9 3 2 Engine 15 | 1 1 1 1 2 . 1 3 . 2 . . . . 1 . . 2 . . . . . . . Core 13 | . . 1 . 1 . 1 1 . . . . . . . . . 4 . . 1 . 4 . . Reactor 12 | . . . . . . . 1 . 1 . . . . . . . . . . . . 5 3 2 Propulsion 107 | 2 2 2 14 2 1 3 7 1 15 . . . . 1 3 3 16 . . 3 5 12 15 . Treads . | . . . . . . . . . . . . . . . . . . . . . . . . . Leg 9 | 2 . . . . . . . . . . . . . . . . 7 . . . . . . . Wheel . | . . . . . . . . . . . . . . . . . . . . . . . . . Hover 22 | . . . . . . . 7 . 6 . . . . . . . . . . 1 1 3 4 . Flight 76 | . 2 2 14 2 1 3 . 1 9 . . . . 1 3 3 9 . . 2 4 9 11 . Utility 95 | 1 4 1 5 . 1 2 5 . 14 1 . . . 1 4 2 16 3 . 1 8 10 15 1 Device 61 | . . . 3 . . 1 3 . 11 1 . . . 1 2 2 8 1 . 1 7 8 12 . Storage 10 | 1 3 1 1 . . . . . 2 . . . . . . . 1 . . . . . . 1 Processor 7 | . . . . . . . . . 1 . . . . . 1 . 1 1 . . . 2 1 . Hackware 4 | . . . . . . 1 2 . . . . . . . . . 1 . . . . . . . Protection 12 | . 1 . 1 . 1 . . . . . . . . . 1 . 5 1 . . 1 . 1 . Artifact 1 | . . . . . . . . . . . . . . . . . . . . . . . 1 . Weapon 75 | 2 1 . 3 3 2 9 10 2 6 . 2 . 1 . . 2 12 2 . 2 7 7 1 1 Energy Gun 10 | . . . 3 2 1 2 1 . . . . . . . . . . . . . 1 . . . Energy Cannon 4 | . . . . . . . . . . . . . . . . . . . . . 1 2 . 1 Ballistic Gun 9 | 2 1 . . 1 . 2 . . . . . . . . . . 3 . . . . . . . Ballistic Cannon 1 | . . . . . . . . 1 . . . . . . . . . . . . . . . . Launcher 13 | . . . . . 1 4 1 . 1 . 1 . . . . . 3 1 . . . . 1 . Special Weapon 4 | . . . . . . . 3 . 1 . . . . . . . . . . . . . . . Impact Weapon 13 | . . . . . . . . . 2 . . . . . . . 3 1 . 2 5 . . . Slashing Weapon 15 | . . . . . . 1 5 1 2 . 1 . . . . 1 2 . . . . 2 . . Piercing Weapon 6 | . . . . . . . . . . . . . 1 . . 1 1 . . . . 3 . . Special Melee Weapon . | . . . . . . . . . . . . . . . . . . . . . . . . . Unidentified Prototypes 24 | . . . 1 1 1 . 1 . 4 . . . . . . 1 . 1 . . 1 4 8 1 Corrupted Parts 2 | . . . . . 1 . . . . . . . . . . . 1 . . . . . . . System Corruption 13 | . . . . . 6 . . . . . . . . . . . 7 . . . . . . . Parts Lost 99 | . . 3 8 . 3 9 5 . 2 . . . . . 1 . 14 5 . 4 6 16 21 2 Power 12 | . . 1 . . 1 2 . . 1 . . . . . . . 2 . . . . 2 3 . Propulsion 58 | . . . 7 . 1 5 4 . 1 . . . . . . . 8 2 . 4 3 8 13 2 Utility 21 | . . 1 1 . 1 2 . . . . . . . . 1 . 4 2 . . 1 4 4 . Weapon 8 | . . 1 . . . . 1 . . . . . . . . . . 1 . . 2 2 1 . Highest Loss Streak 17 | . . 3 3 . 3 5 3 . 1 . . . . . 1 . 7 5 . 2 2 7 17 1 To Critical Strikes . | . . . . . . . . . . . . . . . . . . . . . . . . . Average Slot Usage (%) 73 | . 86 67 89 98 96 71 74 96 91 84 84 84 84 87 93 99 81 57 52 51 44 57 73 32 Engine 4 | . 12 . 11 11 15 3 6 7 2 7 7 7 7 7 13 11 5 5 5 . . . 1 . Core 1 | . . . . 4 . 4 1 . . . . . . . . . 2 . . 2 4 1 . . Reactor 2 | . . . . . . . 4 7 11 . . . . . . . . . . . . 3 6 1 Leg 2 | . 22 . . . . . . . . . . . . . . . 11 . . . . . . . Hover 3 | . . . . . . . 10 31 4 . . . . . . . . . . 1 1 4 11 4 Flight 24 | . 5 28 39 45 45 31 19 10 34 38 38 38 38 40 40 51 27 29 29 25 15 16 19 5 Device 7 | . . . 15 9 6 . 4 7 6 7 7 7 7 13 6 6 9 4 . 3 10 12 10 4 Storage 3 | . 13 6 2 9 9 9 . . 6 7 7 7 7 6 6 5 2 . . . . . . 4 Processor 4 | . . . . . . . . . 4 7 7 7 7 6 6 5 5 4 5 5 5 10 10 8 Hackware 2 | . . . . . . 4 15 15 3 . . . . . . . . . . . . . . . Protection 2 | . 4 8 1 . 3 1 . . . . . . . . 6 4 1 5 11 7 5 . 1 . Energy Gun 1 | . . . 19 18 16 9 . . . . . . . . . . . . . . . . . . Ballistic Gun 2 | . 27 22 1 . . 3 . . . . . . . . . . 1 . . . . . . . Impact Weapon 1 | . . . . . . . . . 1 7 7 7 7 6 6 3 3 3 . 1 . . . . Slashing Weapon 2 | . . . . . . 2 6 7 9 7 6 7 5 . . 1 2 . . . . . . . Piercing Weapon 1 | . . . . . . . . . . . . . 1 6 6 5 . . . . . 4 6 4 Naked Turns . | . . . . . . . . . . . . . . . . . . . . . . . . . Heaviest Build 52 | 14 24 13 15 24 22 22 22 22 41 26 26 26 26 37 38 41 44 32 23 23 27 37 52 43 Greatest Support 116 | 20 20 8 20 24 23 23 54 54 54 35 34 34 34 37 43 60 116 32 24 24 20 45 71 32 Greatest Overweight (x) 7 | . 5 1 2 1 . 1 1 . 1 . . . . . 1 . 7 1 . 1 4 3 3 2 Average Overweight (x) . | . . . . . . . . . . . . . . . . . . . . . . . . . Largest Inventory Capacity 15 | 8 10 8 8 8 8 8 8 5 15 10 10 10 10 10 10 10 10 5 5 5 5 5 5 15 Average Capacity 6 | 7 9 6 5 8 8 8 5 5 9 10 10 10 10 10 10 10 7 5 5 5 5 5 5 15 Most Carried 10 | . 10 8 8 7 8 8 8 5 10 9 10 10 10 9 10 10 10 5 5 5 5 5 5 8 Average Carried 5 | . 5 6 4 6 6 6 5 4 9 9 9 10 10 8 9 9 6 4 5 4 4 3 4 5 Final Capacity 15 | 8 8 5 8 8 8 8 5 5 10 10 10 10 10 10 10 10 5 5 5 5 5 5 5 15 Final Carried 10 | . 8 4 8 6 6 8 4 5 9 9 10 10 10 9 10 10 5 5 5 5 4 5 5 8 Class Distribution -------------------- 26% | Scavenger-Sprinter 26% | Sprinter 20% | Mutant 8% | Scavenger-Mutant 5% | Hacker-Sprinter 4% | Generator-Sprinter 3% | Hacker-Mutant Dominant Class ---------------- Mutant | -10/Materials Mutant | -10/Mines Scavenger-Sprinter | -9/Materials Scavenger-Sprinter | -8/Materials Scavenger-Sprinter | -8/Storage Scavenger-Sprinter | -8/Garrison Hacker-Sprinter | -7/Factory Scavenger-Mutant | -7/Waste Sprinter | -7/Factory Sprinter | -7/Lower Caves Sprinter | -7/Lower Caves Sprinter | -7/Zion Sprinter | -6/Proximity Caves Sprinter | -6/Factory Sprinter | -6/DSF Sprinter | -5/Factory Sprinter | -5/Extension Scavenger-Sprinter | -5/Cetus Scavenger-Sprinter | -5/Archives Scavenger-Sprinter | -5/Hub_04(d) Scavenger-Sprinter | -4/Factory Mutant | -3/Research Generator-Sprinter | -3/Quarantine Mutant | -2/Research Resources | -11 -10 -10 -9 -8 -8 -8 -7 -7 -7 -7 -7 -7 -6 -6 -6 -5 -5 -5 -5 -5 -4 -3 -3 -2 ----------- Run | Scr Mat Min Mat Mat Sto Gar Fac Was Fac Low Low Zio Pro Fac DSF Fac Ext Cet Arc Hub Fac Res Qua Res Matter Collected 3624 | 167 147 214 221 121 35 47 479 10 455 32 17 . 39 29 . 105 671 165 . 70 . 466 134 . Remotely . | . . . . . . . . . . . . . . . . . . . . . . . . . Salvage Created 3409 | . 222 58 480 156 36 47 399 . 204 . . . 39 . . 139 515 52 . 23 547 390 102 . Parts 190 | . 21 9 40 5 3 11 25 . 5 . . . 4 . . . 11 1 . 2 21 18 14 . Haulers Intercepted 6 | . 1 . 1 . 1 . . . 1 . . . . . . . . . . . 1 1 . . Recyclers Shooed 3 | . . . . 2 . . 1 . . . . . . . . . . . . . . . . . Parts Field Recycled . | . . . . . . . . . . . . . . . . . . . . . . . . . Retrieved Matter . | . . . . . . . . . . . . . . . . . . . . . . . . . Parts Self-Destructed 4 | . . . . . . . . . . . . . 4 . . . . . . . . . . . Prevented . | . . . . . . . . . . . . . . . . . . . . . . . . . Kills | -11 -10 -10 -9 -8 -8 -8 -7 -7 -7 -7 -7 -7 -6 -6 -6 -5 -5 -5 -5 -5 -4 -3 -3 -2 ------- Run | Scr Mat Min Mat Mat Sto Gar Fac Was Fac Low Low Zio Pro Fac DSF Fac Ext Cet Arc Hub Fac Res Qua Res Combat Hostiles Destroyed 69 | . 7 4 16 3 . 11 6 . 4 . . . 1 . . . 6 1 . 1 2 2 5 . Melee 13 | . . . . . . . 3 . 2 . . . 1 . . . 3 . . 1 . 2 1 . Guns 32 | . 7 4 16 3 . 1 . . . . . . . . . . 1 . . . . . . . AOE 22 | . . . . . . 10 3 . 2 . . . . . . . 1 . . . 2 . 4 . Classes Destroyed 16 | . 3 1 4 . . 1 3 . 2 . . . . . . . 1 . . . 1 . . . Worker 4 | . . . 1 . . . 1 . . . . . . . . . . . . . 2 . . . Builder 1 | . . . . . . . . . . . . . . . . . . . . . 1 . . . Tunneler 2 | . . . . . . . 1 . . . . . . . . . . . . . 1 . . . Hauler 6 | . 1 . 1 . 1 . . . 1 . . . . . . . . . . . 1 1 . . Recycler 9 | . 1 . 1 1 . . 1 . . . . . . . . 1 2 . . . 1 1 . . Operator 3 | . . . . . . . 1 . 1 . . . . . . . . . . . 1 . . . Watcher 9 | . . . 1 . . . 3 . . . . . . . . 1 . 1 . . 2 1 . . Swarmer 37 | . 7 3 8 . . 8 3 . . . . . . . . . 2 . . 1 . 1 4 . Cutter 3 | . . . . . . 3 . . . . . . . . . . . . . . . . . . Grunt 15 | . . . 6 3 . . . . 2 . . . . . . . 2 . . . 2 . . . Brawler 1 | . . . . . . . . . 1 . . . . . . . . . . . . . . . Duelist 1 | . . . . . . . . . 1 . . . . . . . . . . . . . . . Sentry 3 | . . . 2 . . . . . . . . . . . . . 1 . . . . . . . Hunter 1 | . . . . . . . . . . . . . . . . . 1 . . . . . . . Programmer 6 | . . . . . . . 3 . . . . . 1 . . . . . . . . 1 1 . Cetus Guard 1 | . . . . . . . . . . . . . . . . . . 1 . . . . . . Assembled 1 | . . 1 . . . . . . . . . . . . . . . . . . . . . . Savage 1 | . . . . . . . . . . . . . . . . . 1 . . . . . . . Best Kill Streak 7 | . 4 3 6 3 1 7 4 . 2 . . . 1 . . 2 2 1 . 1 5 1 4 . Combat Bots Only 7 | . 3 3 5 3 . 7 3 . 2 . . . 1 . . . 2 1 . 1 1 1 4 . Max Kills in Single Turn 4 | . 2 1 2 1 1 4 3 . 2 . . . 1 . . 1 1 1 . 1 3 1 3 . Gunslinging 1 | . 1 . . . . . . . . . . . . . . . . . . . . . . . Exploded 4 | . . . . . . 4 3 . 2 . . . . . . . 1 . . . 1 . 3 . Melee 1 | . . . . . . . 1 . 1 . . . 1 . . . 1 . . 1 . 1 1 . Uniques/NPCs Destroyed . | . . . . . . . . . . . . . . . . . . . . . . . . . Combat | -11 -10 -10 -9 -8 -8 -8 -7 -7 -7 -7 -7 -7 -6 -6 -6 -5 -5 -5 -5 -5 -4 -3 -3 -2 -------- Run | Scr Mat Min Mat Mat Sto Gar Fac Was Fac Low Low Zio Pro Fac DSF Fac Ext Cet Arc Hub Fac Res Qua Res Damage Taken 11258 | . 275 415 320 161 150 741 451 . 192 67 . . . 5 197 171 1486 359 . 427 952 2179 2206 504 Core 2754 | . 58 169 52 30 45 155 85 . 16 . . . . . 59 34 318 75 . 125 164 726 336 307 Absorbed by Shields 428 | . . . . . . 64 . . . . . . . . . . 124 149 . . . 91 . . Core Remaining (%) 64 | 100 . 9 87 . . 58 . . . . . . 85 . 93 . . . . 44 85 . 15 . Volleys Fired 128 | . 24 6 35 18 4 13 3 . 2 . 1 . . . . . 10 7 . . . 3 2 . Largest 2 | . 2 2 2 2 2 2 1 . 1 . 1 . . . . . 2 1 . . . 1 1 . Hottest 130 | . 40 40 130 130 130 130 43 . 43 . 43 . . . . . 66 43 . . . 105 49 . Shots Fired 205 | . 47 11 64 25 8 21 3 . 2 . 1 . . . . . 11 7 . . . 3 2 . Gun 176 | . 47 11 64 25 8 15 . . . . . . . . . . 6 . . . . . . . Cannon 3 | . . . . . . . . . . . . . . . . . . . . . . 3 . . Launcher 24 | . . . . . . 6 1 . 2 . 1 . . . . . 5 7 . . . . 2 . Special 2 | . . . . . . . 2 . . . . . . . . . . . . . . . . . Kinetic 69 | . 47 11 4 . . 1 . . . . . . . . . . 6 . . . . . . . Thermal 110 | . . . 60 25 8 14 . . . . . . . . . . . . . . . 3 . . Explosive 24 | . . . . . . 6 1 . 2 . 1 . . . . . 5 7 . . . . 2 . Electromagnetic . | . . . . . . . . . . . . . . . . . . . . . . . . . Robot Hit Streak 13 | . 4 6 9 8 9 11 8 . 9 . . . . . . . 13 8 . . . 2 . . Robot Miss Streak 7 | . 6 2 7 5 4 6 . . . . . . . . . . 2 . . . . 1 2 . Penetration Max . | . . . . . . . . . . . . . . . . . . . . . . . . . Secondary Targets 3 | . 1 1 1 . . . . . . . . . . . . . . . . . . . . . Max Gunslinging Chain 1 | . 1 1 1 . . . . . . . . . . . . . . . . . . . . . Shots Hit Robots 196 | . 20 7 49 25 7 14 19 . 5 . . . 1 . . 2 22 8 . 4 . 10 3 . Core Hits 224 | . 10 5 73 31 4 21 14 . 9 . . . 1 . . . 9 16 . 1 13 6 11 . Critical Kills 3 | . . 1 . . . . . . . . . . . . . . 1 . . . . 1 . . Critical Parts Destroyed 6 | . 1 . . . . . . . . . . . . . . 1 2 1 . 1 . . . . Critical Strikes 10 | . 1 2 . . . . . . . . . . . . . 1 3 1 . 1 . 1 . . Meltdown 1 | . . . . . . . . . . . . . . . . . . . . . . 1 . . Destroy 3 | . 1 2 . . . . . . . . . . . . . . . . . . . . . . Smash 6 | . . . . . . . . . . . . . . . . 1 3 1 . 1 . . . . Melee Attacks 138 | . . . . . . 2 27 . 20 . 7 1 1 . . 4 28 2 . 5 9 11 20 1 Impact 43 | . . . . . . . . . 6 . 6 1 1 . . 2 11 2 . 5 9 . . . Slashing 56 | . . . . . . 2 27 . 14 . 1 . . . . 1 10 . . . . 1 . . Piercing 39 | . . . . . . . . . . . . . . . . 1 7 . . . . 10 20 1 Sneak Attacks 14 | . . . . . . . 5 . 2 . . . . . . 2 2 . . . . 3 . . Combat Hostiles . | . . . . . . . . . . . . . . . . . . . . . . . . . Follow-up Attacks 3 | . . . . . . . . . . . . . . . . . 3 . . . . . . . Damage Inflicted 10829 | . 268 87 679 358 88 946 1382 . 637 . . . 54 . . 263 2079 716 . 169 1836 630 637 . Guns 1692 | . 267 87 679 354 88 170 . . . . . . . . . . 47 . . . . . . . Cannons 74 | . . . . . . . . . . . . . . . . . . . . . . 74 . . Explosions 5557 | . . . . . . 776 277 . 414 . . . . . . . 1098 662 . . 1836 . 494 . Melee 3501 | . . . . . . . 1105 . 223 . . . 54 . . 263 934 54 . 169 . 556 143 . Ramming 5 | . 1 . . 4 . . . . . . . . . . . . . . . . . . . . Kinetic 411 | . 267 87 10 . . . . . . . . . . . . . 47 . . . . . . . Thermal 2706 | . . . 669 354 88 170 . . . . . . . . . . 556 . . . 795 74 . . Explosive 4206 | . . . . . . 776 277 . 414 . . . . . . . 542 662 . . 1041 . 494 . Electromagnetic . | . . . . . . . . . . . . . . . . . . . . . . . . . Impact 996 | . . . . . . . . . . . . . 54 . . 263 456 54 . 169 . . . . Slashing 1717 | . . . . . . . 1105 . 223 . . . . . . . 351 . . . . 38 . . Piercing 788 | . . . . . . . . . . . . . . . . . 127 . . . . 518 143 . Highest Corruption 25 | . . . 1 . 7 8 2 2 4 4 4 4 . . . 1 8 8 8 9 . 7 25 . Average Corruption 5 | . . . 1 . 6 7 1 2 3 4 4 4 . . . 1 5 8 8 8 . 6 14 . Corruption Purged . | . . . . . . . . . . . . . . . . . . . . . . . . . Corruption Blocked . | . . . . . . . . . . . . . . . . . . . . . . . . . Effects 103 | . . . 1 . 1 11 4 . 11 3 3 . . . . . 12 7 1 5 . 18 26 . Message Errors 24 | . . . . . . 3 2 . 2 1 . . . . . . 3 4 1 1 . 4 3 . Matter Fused 27 | . . . 1 . . 3 . . 2 2 2 . . . . . 3 2 . 2 . 6 4 . Heat Flow Errors 10 | . . . . . . . 2 . 1 . . . . . . . 2 . . . . 3 2 . Energy Discharges 14 | . . . . . . 2 . . 2 . . . . . . . 3 . . 2 . 2 3 . Parts Rejected 2 | . . . . . . . . . . . . . . . . . . . . . . 1 1 . Data Loss (minor) 5 | . . . . . 1 . . . 1 . 1 . . . . . . . . . . 1 1 . Data Loss (major) 7 | . . . . . . 1 . . 3 . . . . . . . 1 1 . . . 1 . . Misfires 1 | . . . . . . 1 . . . . . . . . . . . . . . . . . . Alerts 1 | . . . . . . . . . . . . . . . . . . . . . . . 1 . Misdirections 11 | . . . . . . . . . . . . . . . . . . . . . . . 11 . Weapon Failures 1 | . . . . . . 1 . . . . . . . . . . . . . . . . . . Overload Shots . | . . . . . . . . . . . . . . . . . . . . . . . . . Overflow Damage 1199 | . . . . . . 32 232 . 55 . . . . . . 233 301 54 . 31 158 69 34 . Projectiles . | . . . . . . . . . . . . . . . . . . . . . . . . . Explosions 244 | . . . . . . 32 . . . . . . . . . . 20 . . . 158 . 34 . Melee 955 | . . . . . . . 232 . 55 . . . . . . 233 281 54 . 31 . 69 . . Knockbacks 6 | . . . . . . . . . . . . . . . . 2 2 . . 2 . . . . Impact 6 | . . . . . . . . . . . . . . . . 2 2 . . 2 . . . . Kinetic . | . . . . . . . . . . . . . . . . . . . . . . . . . Secondary . | . . . . . . . . . . . . . . . . . . . . . . . . . Self-Inflicted Damage 553 | . . . . 2 . 92 . . . . . . . . . . 282 . . . 75 . 102 . Shots 9 | . . . . . . 2 . . . . . . . . . . 4 . . . 1 . 2 . Rammed 2 | . . . . 2 . . . . . . . . . . . . . . . . . . . . Targets Rammed 3 | . 1 . . 2 . . . . . . . . . . . . . . . . . . . . Kicked 1 | . 1 . . . . . . . . . . . . . . . . . . . . . . . Crushed . | . . . . . . . . . . . . . . . . . . . . . . . . . Highest Temperature 576 | . 4 18 198 525 127 383 289 1 576 221 57 59 136 204 69 349 446 82 3 16 10 210 354 . Average Temperature 94 | . 3 5 45 220 47 99 133 1 115 85 20 28 62 106 37 143 88 16 2 3 8 106 124 . Received Heat Transfer 1631 | . . . 75 90 9 168 126 . 48 12 . . . . . . 303 22 . 45 191 201 233 108 Effects 24 | . . . . 13 . . . . 5 . . . . . . 1 2 . . . . 3 . . Shutdowns 5 | . . . . 2 . . . . 2 . . . . . . . 1 . . . . . . . Energy Bleed 1 | . . . . . . . . . . . . . . . . 1 . . . . . . . . Interference 9 | . . . . 4 . . . . 2 . . . . . . . . . . . . 3 . . Matter Decay 3 | . . . . 2 . . . . . . . . . . . . 1 . . . . . . . Short Circuit 4 | . . . . 3 . . . . 1 . . . . . . . . . . . . . . . Damage (minor) 2 | . . . . 2 . . . . . . . . . . . . . . . . . . . . Siege Activations . | . . . . . . . . . . . . . . . . . . . . . . . . . Robots Corrupted . | . . . . . . . . . . . . . . . . . . . . . . . . . Combat Hostiles . | . . . . . . . . . . . . . . . . . . . . . . . . . Parts Fried 13 | . . . . . . . 1 . . . . . . . . 2 9 1 . . . . . . Impact Corruptions 16 | . . . . . . . . . . . . . . . . 8 6 1 . 1 . . . . Robots Melted 1 | . . . . . . . . . . . . . . . . . . . . . . 1 . . Combat Hostiles . | . . . . . . . . . . . . . . . . . . . . . . . . . Parts Melted 1 | . . . . . . . . . . . . . . . . . . . . . . 1 . . Heat Transferred 2459 | . . . 835 450 115 185 . . . . . . . . . . 300 . . . 500 74 . . Parts Sabotaged . | . . . . . . . . . . . . . . . . . . . . . . . . . Parts Stolen . | . . . . . . . . . . . . . . . . . . . . . . . . . Parts Stripped . | . . . . . . . . . . . . . . . . . . . . . . . . . Power Chain Reactions . | . . . . . . . . . . . . . . . . . . . . . . . . . Missiles Intercepted . | . . . . . . . . . . . . . . . . . . . . . . . . . Alert | -11 -10 -10 -9 -8 -8 -8 -7 -7 -7 -7 -7 -7 -6 -6 -6 -5 -5 -5 -5 -5 -4 -3 -3 -2 ------- Run | Scr Mat Min Mat Mat Sto Gar Fac Was Fac Low Low Zio Pro Fac DSF Fac Ext Cet Arc Hub Fac Res Qua Res Peak Influence 1289 | . 272 205 542 333 183 491 660 130 521 . . . . 44 33 220 745 1015 406 622 1118 1289 1027 425 Initial 607 | . . 105 44 228 146 111 257 130 91 . . . . 18 33 11 107 416 406 128 304 581 607 425 Average 472 | . 108 160 306 294 165 328 423 130 324 . . . . 37 30 73 407 658 397 395 502 1049 791 418 Maximum Alert Level 4 | . 1 1 2 1 . 2 2 . 2 . . . . . . 1 3 3 2 2 4 4 3 2 Low Security (%) 19 | 100 78 94 32 . 100 14 . 100 21 . . . . 100 100 88 6 . . 25 . . . . Level 1 27 | . 21 5 21 100 . 59 30 . 51 . . . . . . 11 43 . 23 15 62 . . . Level 2 31 | . . . 45 . . 26 69 . 27 . . . . . . . 38 62 76 58 16 15 23 100 Level 3 12 | . . . . . . . . . . . . . . . . . 11 37 . . 18 23 76 . Level 4 8 | . . . . . . . . . . . . . . . . . . . . . 3 61 . . Level 5 . | . . . . . . . . . . . . . . . . . . . . . . . . . High Security . | . . . . . . . . . . . . . . . . . . . . . . . . . Max Security . | . . . . . . . . . . . . . . . . . . . . . . . . . Squads Dispatched 51 | . 1 . 2 1 . . 7 . 13 . . . . 2 1 1 4 . . 5 4 8 2 . Investigation 24 | . 1 . 1 . . . 2 . 9 . . . . 2 . 1 3 . . . 1 4 . . Extermination 3 | . . . . . . . 2 . . . . . . . . . . . . . . . 1 . Reinforcement 20 | . . . 1 1 . . 2 . 4 . . . . . 1 . 1 . . 3 2 4 1 . Assault 2 | . . . . . . . 1 . . . . . . . . . . . . . 1 . . . Garrison 2 | . . . . . . . . . . . . . . . . . . . . 2 . . . . Intercept . | . . . . . . . . . . . . . . . . . . . . . . . . . Searches Triggered 1 | . . . . . . . . . . . . . . . . . . . . . . . 1 . Construction Impeded 2 | . . . . . . . . . 1 . . . . . . . . . . 1 . . . . Haulers Reinforced 4 | . . . . . . . . . . . . . . . . . . . . . 1 3 . . Active Scanning Responses . | . . . . . . . . . . . . . . . . . . . . . . . . . Cargo Convoy Interrupts . | . . . . . . . . . . . . . . . . . . . . . . . . . Stealth | -11 -10 -10 -9 -8 -8 -8 -7 -7 -7 -7 -7 -7 -6 -6 -6 -5 -5 -5 -5 -5 -4 -3 -3 -2 --------- Run | Scr Mat Min Mat Mat Sto Gar Fac Was Fac Low Low Zio Pro Fac DSF Fac Ext Cet Arc Hub Fac Res Qua Res Distress Signals 18 | . 1 . 2 . . . . . 2 . . . . . . 1 1 1 . 2 . 3 5 . Communications Jammed 1 | . . . . . . . . . . . . . . . . . . . . . 1 . . . Distress Signals . | . . . . . . . . . . . . . . . . . . . . . . . . . Times Spotted 385 | . 18 18 21 5 3 16 35 . 21 3 . . 1 1 4 14 36 18 . 19 22 72 56 2 Peak Tracking Total 20 | . 5 14 7 4 4 8 8 . 3 2 . . 1 1 4 7 9 6 . 7 10 20 20 2 Tactical Retreats 50 | . 1 . 2 . . 2 6 . 1 1 . . . . . 2 6 . . 2 8 13 6 . Traps | -11 -10 -10 -9 -8 -8 -8 -7 -7 -7 -7 -7 -7 -6 -6 -6 -5 -5 -5 -5 -5 -4 -3 -3 -2 ------- Run | Scr Mat Min Mat Mat Sto Gar Fac Was Fac Low Low Zio Pro Fac DSF Fac Ext Cet Arc Hub Fac Res Qua Res Traps Triggered 16 | . 1 . 1 . 1 5 1 . 1 . . . . . . 1 2 . . . 1 1 . 1 Indirectly . | . . . . . . . . . . . . . . . . . . . . . . . . . Trap Hack Attempts . | . . . . . . . . . . . . . . . . . . . . . . . . . Triggered . | . . . . . . . . . . . . . . . . . . . . . . . . . Disarmed . | . . . . . . . . . . . . . . . . . . . . . . . . . Reprogrammed . | . . . . . . . . . . . . . . . . . . . . . . . . . Reused . | . . . . . . . . . . . . . . . . . . . . . . . . . Traps Extracted . | . . . . . . . . . . . . . . . . . . . . . . . . . Installed . | . . . . . . . . . . . . . . . . . . . . . . . . . Triggered 4 | . . . . . . . . . . 2 . . . . . . 2 . . . . . . . Machines | -11 -10 -10 -9 -8 -8 -8 -7 -7 -7 -7 -7 -7 -6 -6 -6 -5 -5 -5 -5 -5 -4 -3 -3 -2 ---------- Run | Scr Mat Min Mat Mat Sto Gar Fac Was Fac Low Low Zio Pro Fac DSF Fac Ext Cet Arc Hub Fac Res Qua Res Machines Disabled 49 | . . . . . . 3 3 . 3 . . . . . . . 5 3 . 1 26 . 5 . Max in Single Turn 6 | . . . . . . 1 2 . . . . . . . . . 2 1 . . 6 . 1 . Garrison Access 6 | . . . . . . . 2 . 1 . . . . . . 1 . . . . . 2 . . Garrison Relay 2 | . . . . . . 2 . . . . . . . . . . . . . . . . . . Network Hub 2 | . . . . . . . . . . . . . . . . . . . . 2 . . . . Energy Cycler 3 | . . . . . . . . . . . . . . . . . 3 . . . . . . . Machines Sabotaged . | . . . . . . . . . . . . . . . . . . . . . . . . . Garrisons Compromised 1 | . . . . . . . . . 1 . . . . . . . . . . . . . . . Overloaded Fab Kills . | . . . . . . . . . . . . . . . . . . . . . . . . . Hacking | -11 -10 -10 -9 -8 -8 -8 -7 -7 -7 -7 -7 -7 -6 -6 -6 -5 -5 -5 -5 -5 -4 -3 -3 -2 --------- Run | Scr Mat Min Mat Mat Sto Gar Fac Was Fac Low Low Zio Pro Fac DSF Fac Ext Cet Arc Hub Fac Res Qua Res Machines Accessed 73 | . 1 . 3 . 1 . 13 . 16 . . . . 2 . 4 9 1 1 . 8 8 6 . Terminals 46 | . 1 . 3 . . . 7 . 8 . . . . 2 . 3 9 1 . . 4 3 5 . Fabricators 12 | . . . . . . . 3 . 6 . . . . . . . . . . . 1 2 . . Repair Stations 2 | . . . . . . . . . . . . . . . . . . . . . 1 . 1 . Recycling Units 6 | . . . . . . . 1 . 1 . . . . . . . . . . . 2 2 . . Scanalyzers . | . . . . . . . . . . . . . . . . . . . . . . . . . Garrison Access 6 | . . . . . 1 . 2 . 1 . . . . . . 1 . . . . . 1 . . Total Hacks 226 | . 1 . 6 . 1 . 32 . 44 . . . . 12 . 10 23 2 25 . 23 32 15 . Successful 104 | . . . 2 . 1 . 16 . 14 . . . . 4 . 3 11 . 25 . 7 17 4 . Failed 122 | . 1 . 4 . . . 16 . 30 . . . . 8 . 7 12 2 . . 16 15 11 . Catastrophic 29 | . 1 . . . . . 2 . 8 . . . . . . 1 2 . . . 4 5 6 . Database Lockouts . | . . . . . . . . . . . . . . . . . . . . . . . . . Manual 86 | . . . 2 . . . 16 . 21 . . . . 8 . 3 3 1 . . 12 13 7 . Terminals 142 | . 1 . 6 . . . 15 . 27 . . . . 12 . 9 23 2 . . 16 17 14 . Fabricators 28 | . . . . . . . 10 . 13 . . . . . . . . . . . 1 4 . . Repair Stations 5 | . . . . . . . . . . . . . . . . . . . . . 4 . 1 . Recycling Units 17 | . . . . . . . 3 . 2 . . . . . . . . . . . 2 10 . . Scanalyzers . | . . . . . . . . . . . . . . . . . . . . . . . . . Garrison Access 9 | . . . . . 1 . 4 . 2 . . . . . . 1 . . . . . 1 . . Terminal Hacks 58 | . . . 2 . . . 2 . 5 . . . . 3 . 2 11 . 25 . 1 7 . . Record 26 | . . . . . . . . . . . . . . . . . 1 . 25 . . . . . Part Schematic 1 | . . . . . . . . . . . . . . . . . 1 . . . . . . . Robot Schematic 1 | . . . . . . . . . . . . . . . . . 1 . . . . . . . Open Door 6 | . . . . . . . . . . . . . . . . . 6 . . . . . . . Open DSF 2 | . . . . . . . . . . . . . . 1 . 1 . . . . . . . . Level Access Points 1 | . . . . . . . . . . . . . . . . . . . . . 1 . . . Branch Access Points 4 | . . . . . . . 1 . 1 . . . . . . 1 . . . . . 1 . . Terminal Index 3 | . . . 1 . . . . . . . . . . 1 . . . . . . . 1 . . Fabricator Index 2 | . . . . . . . . . 1 . . . . . . . . . . . . 1 . . Unreport Threat 4 | . . . . . . . 1 . 2 . . . . . . . 1 . . . . . . . Locate Traps 2 | . . . 1 . . . . . . . . . . . . . . . . . . 1 . . Maintenance Status 1 | . . . . . . . . . . . . . . . . . . . . . . 1 . . Hauler Manifests 2 | . . . . . . . . . 1 . . . . . . . . . . . . 1 . . Registered Components 1 | . . . . . . . . . . . . . . . . . . . . . . 1 . . Zone Layout 2 | . . . . . . . . . . . . . . 1 . . 1 . . . . . . . Fabricator Hacks 5 | . . . . . . . 2 . 1 . . . . . . . . . . . 1 1 . . Network Status 1 | . . . . . . . 1 . . . . . . . . . . . . . . . . . Build 4 | . . . . . . . 1 . 1 . . . . . . . . . . . 1 1 . . Repair Station Hacks 2 | . . . . . . . . . . . . . . . . . . . . . 1 . 1 . Refit 2 | . . . . . . . . . . . . . . . . . . . . . 1 . 1 . Recycling Unit Hacks 6 | . . . . . . . 1 . . . . . . . . . . . . . 2 3 . . Report Inventory 5 | . . . . . . . 1 . . . . . . . . . . . . . 2 2 . . Retrieve Components 1 | . . . . . . . . . . . . . . . . . . . . . . 1 . . Scanalyzer . | . . . . . . . . . . . . . . . . . . . . . . . . . Garrison Access Hacks 7 | . . . . . 1 . 2 . 2 . . . . . . 1 . . . . . 1 . . Unlock Access 1 | . . . . . 1 . . . . . . . . . . . . . . . . . . . Seal Access 4 | . . . . . . . 1 . 1 . . . . . . 1 . . . . . 1 . . Coupler Status 2 | . . . . . . . 1 . 1 . . . . . . . . . . . . . . . Unauthorized Hacks 26 | . . . . . . . 9 . 6 . . . . 1 . . . . . . 2 5 3 . Terminals 14 | . . . . . . . 3 . 3 . . . . 1 . . . . . . 2 2 3 . Assimilate 4 | . . . . . . . 1 . 1 . . . . . . . . . . . . . 2 . Botnet 8 | . . . . . . . 2 . 2 . . . . 1 . . . . . . 1 1 1 . Detonate 1 | . . . . . . . . . . . . . . . . . . . . . 1 . . . Disrupt 1 | . . . . . . . . . . . . . . . . . . . . . . 1 . . Fabricators 5 | . . . . . . . 2 . 3 . . . . . . . . . . . . . . . Fabnet 5 | . . . . . . . 2 . 3 . . . . . . . . . . . . . . . Repair Stations . | . . . . . . . . . . . . . . . . . . . . . . . . . Recycling Units 5 | . . . . . . . 2 . . . . . . . . . . . . . . 3 . . Reject 3 | . . . . . . . 1 . . . . . . . . . . . . . . 2 . . Mask 2 | . . . . . . . 1 . . . . . . . . . . . . . . 1 . . Scanalyzers . | . . . . . . . . . . . . . . . . . . . . . . . . . Garrison Access 2 | . . . . . . . 2 . . . . . . . . . . . . . . . . . Restock 1 | . . . . . . . 1 . . . . . . . . . . . . . . . . . Reprogram 1 | . . . . . . . 1 . . . . . . . . . . . . . . . . . Data Cores Recovered . | . . . . . . . . . . . . . . . . . . . . . . . . . Used . | . . . . . . . . . . . . . . . . . . . . . . . . . Hacking Detections 56 | . 1 . 3 . . . 9 . 16 . . . . 2 . 2 7 1 . . 5 5 5 . Full Trace Events 17 | . . . 1 . . . 1 . 8 . . . . 2 . 1 2 . . . 1 1 . . Feedback Events 3 | . . . 1 . . . . . 1 . . . . . . 1 . . . . . . . . Corruption 3 | . . . 1 . . . . . 1 . . . . . . 1 . . . . . . . . Feedback Blocked . | . . . . . . . . . . . . . . . . . . . . . . . . . Robot Schematics Acquired 4 | . . . . . . . . . . . . 3 . . . . 1 . . . . . . . Robots Built 5 | . . . . . . . . . 2 . . . . . . . . . . . . 3 . . Authchips . | . . . . . . . . . . . . . . . . . . . . . . . . . Time 137 | . . . . . . . . . 44 . . . . . . . . . . . . 93 . . Total Robot Build Rating 29 | . . . . . . . . . 8 . . . . . . . . . . . . 21 . . Part Schematics Acquired 17 | . . . . . . . . . . . . 16 . . . . 1 . . . . . . . Parts Built 3 | . . . . . . . 2 . . . . . . . . . . . . . 1 . . . Authchips . | . . . . . . . . . . . . . . . . . . . . . . . . . Time 234 | . . . . . . . 117 . . . . . . . . . . . . . 117 . . . Total Part Build Rating 21 | . . . . . . . 14 . . . . . . . . . . . . . 7 . . . Parts Repaired . | . . . . . . . . . . . . . . . . . . . . . . . . . Time . | . . . . . . . . . . . . . . . . . . . . . . . . . Parts Recycled . | . . . . . . . . . . . . . . . . . . . . . . . . . Recycled Matter . | . . . . . . . . . . . . . . . . . . . . . . . . . Retrieved Matter . | . . . . . . . . . . . . . . . . . . . . . . . . . Retrieved Components 2 | . . . . . . . . . . . . . . . . . . . . . . 2 . . Parts Scanalyzed . | . . . . . . . . . . . . . . . . . . . . . . . . . Part Schematics Acquired . | . . . . . . . . . . . . . . . . . . . . . . . . . Parts Damaged . | . . . . . . . . . . . . . . . . . . . . . . . . . Bothacking | -11 -10 -10 -9 -8 -8 -8 -7 -7 -7 -7 -7 -7 -6 -6 -6 -5 -5 -5 -5 -5 -4 -3 -3 -2 ------------ Run | Scr Mat Min Mat Mat Sto Gar Fac Was Fac Low Low Zio Pro Fac DSF Fac Ext Cet Arc Hub Fac Res Qua Res Used RIF Installer 1 | . . . . . . 1 . . . . . . . . . . . . . . . . . . Robots Hacked 10 | . . . . . . . 1 . . . . . . . . 1 4 1 2 1 . . . . Non-combat 1 | . . . . . . . 1 . . . . . . . . . . . . . . . . . Combat 9 | . . . . . . . . . . . . . . . . 1 4 1 2 1 . . . . Robot Hacks Applied 2 | . . . . . . . 2 . . . . . . . . . . . . . . . . . purge_threat 1 | . . . . . . . 1 . . . . . . . . . . . . . . . . . formatsys_low 1 | . . . . . . . 1 . . . . . . . . . . . . . . . . . Relay Couplers Released 16 | . . . . . . 7 6 . . . . . . . . . . . . . . 3 . . Machine Destruction 12 | . . . . . . 7 2 . . . . . . . . . . . . . . 3 . . Programmers 4 | . . . . . . . 4 . . . . . . . . . . . . . . . . . Attached 1 | . . . . . . . 1 . . . . . . . . . . . . . . . . . Fabnet Peak Effective % 15 | . . . . . . . . . . . . . 15 15 15 5 5 5 5 5 . . . . Autooverrided 9 | . . . . . . . . . . . . . . . . 1 4 1 2 1 . . . . Robots Rewired 4 | . . . . . . . 1 . . . . . . . . . 3 . . . . . . . Allies Hacked 1 | . . . . . . . . . . . . . . . . . . . . . . . 1 . Hacks Repelled . | . . . . . . . . . . . . . . . . . . . . . . . . . Allies | -11 -10 -10 -9 -8 -8 -8 -7 -7 -7 -7 -7 -7 -6 -6 -6 -5 -5 -5 -5 -5 -4 -3 -3 -2 -------- Run | Scr Mat Min Mat Mat Sto Gar Fac Was Fac Low Low Zio Pro Fac DSF Fac Ext Cet Arc Hub Fac Res Qua Res Total Allies 77 | . . 3 . . . . 4 20 15 . . . . . . 1 20 6 2 1 . 3 2 . Largest Group 20 | . . 3 . . . . 2 20 20 . . . . . . 1 6 6 7 6 . 3 1 . Highest-Rated Group 632 | . . 40 . . . . 87 484 484 . . . . . . 41 294 632 609 515 . 141 45 . Highest-Rated Ally 159 | . . 16 . . . . 55 35 40 . . . . . . 41 159 152 136 96 . 47 45 . Total Orders . | . . . . . . . . . . . . . . . . . . . . . . . . . Ally Attacks 373 | . . 26 . . . . 14 . 131 . . . . . . 2 79 58 5 58 . . . . Total Damage 10202 | . . 232 . . . . 467 . 2881 . . . . . . 55 2037 2554 56 1920 . . . . Kills 68 | . . . . . . . 3 . 20 . . . . . . . 22 12 . 11 . . . . Allies Corrupted 4 | . . . . . . . . . . . . . . . . . . . . . . 2 2 . Allies Melted 2 | . . . . . . . . . . . . . . . . . 1 . 1 . . . . . Intel | -11 -10 -10 -9 -8 -8 -8 -7 -7 -7 -7 -7 -7 -6 -6 -6 -5 -5 -5 -5 -5 -4 -3 -3 -2 ------- Run | Scr Mat Min Mat Mat Sto Gar Fac Was Fac Low Low Zio Pro Fac DSF Fac Ext Cet Arc Hub Fac Res Qua Res Robot Analysis Total . | . . . . . . . . . . . . . . . . . . . . . . . . . Derelict Logs Recovered 3 | . . 1 . . . . . . . 1 . . 1 . . . . . . . . . . . Drone Launches . | . . . . . . . . . . . . . . . . . . . . . . . . . Drone Recoveries . | . . . . . . . . . . . . . . . . . . . . . . . . . Exploration | -11 -10 -10 -9 -8 -8 -8 -7 -7 -7 -7 -7 -7 -6 -6 -6 -5 -5 -5 -5 -5 -4 -3 -3 -2 ------------- Run | Scr Mat Min Mat Mat Sto Gar Fac Was Fac Low Low Zio Pro Fac DSF Fac Ext Cet Arc Hub Fac Res Qua Res Turns Passed 7087 | 57 383 188 321 103 63 288 842 148 784 130 143 40 93 40 25 143 781 325 43 163 549 874 440 121 Spaces Moved 12378 | 41 224 278 353 68 142 404 1715 249 1508 450 417 153 330 174 63 540 977 360 108 328 651 1810 936 99 Core 5 | 3 . . . . . . . . . . . . . . . . 1 . . . . . 1 . Treads . | . . . . . . . . . . . . . . . . . . . . . . . . . Legs 411 | 38 180 . . . . . . . . . . . . . . . 193 . . . . . . . Wheels . | . . . . . . . . . . . . . . . . . . . . . . . . . Hover 1033 | . . . . . . . 428 168 108 . . . . . . . . . . . 237 43 11 38 Flight 10929 | . 44 278 353 68 142 404 1287 81 1400 450 417 153 330 174 63 540 783 360 108 328 414 1767 924 61 Fastest Speed 13 | 50 37 37 31 28 28 27 28 37 24 20 24 24 24 20 17 13 17 17 23 21 23 27 25 42 Average Speed 34 | 114 121 57 32 31 28 32 36 41 27 23 24 24 24 20 18 15 42 22 23 23 39 34 32 68 Slowest Speed 450 | 120 450 117 200 103 31 107 120 44 112 24 24 24 24 20 81 17 400 97 23 102 295 190 280 150 Overloaded Moves 166 | . . . . . . 4 6 . . 26 . . . . 44 66 . . . 15 5 . . . Propulsion Burnouts . | . . . . . . . . . . . . . . . . . . . . . . . . . Robots Hopped 88 | . . 13 . . 2 6 7 . 11 5 . . . 1 1 1 1 2 1 5 1 10 21 . Cave-ins Triggered 1 | . . . . . . . . . . . . . . . . . . . . . . . 1 . Teleports 2 | . . . . . . . . . . . . . . . . . . . . . . . 2 . Exploration Rate (%) 43 | 4 28 46 17 6 32 59 36 94 52 66 52 13 57 5 84 19 72 88 87 25 26 45 83 3 Regions Visited 24 Branch Regions 11 Pre-discovered Areas 1 | . . . . . . . . . . 1 . . . . . . . . . . . . . . Known Exits Taken 12 | . . . . . 1 . . . 1 1 1 1 1 1 . 1 . . . 1 1 1 1 . Unknown Exits Taken 8 | 1 1 1 1 1 . . . . . . . . . . . . 1 1 1 . . . . . Scrap Searched 7 | . . 1 . . . . . . . 3 1 . 2 . . . . . . . . . . . Spaces Dug 74 | . . . . . . . 1 . 12 . 22 . . . . 1 19 . . . 9 3 6 1 Terrain Destroyed 441 | . . . . . . 63 9 . 17 . 22 . . . . 1 151 59 . . 84 4 30 1 Melee 39 | . . . . . . . 1 . 12 . 6 . . . . 1 . . . . 9 3 6 1 Projectile 1 | . . . . . . . . . . . . . . . . . . . . . . 1 . . AOE 401 | . . . . . . 63 8 . 5 . 16 . . . . . 151 59 . . 75 . 24 . Terrain Rammed . | . . . . . . . . . . . . . . . . . . . . . . . . . Walls Destroyed . | . . . . . . . . . . . . . . . . . . . . . . . . . Machines Disabled . | . . . . . . . . . . . . . . . . . . . . . . . . . Actions | -11 -10 -10 -9 -8 -8 -8 -7 -7 -7 -7 -7 -7 -6 -6 -6 -5 -5 -5 -5 -5 -4 -3 -3 -2 --------- Run | Scr Mat Min Mat Mat Sto Gar Fac Was Fac Low Low Zio Pro Fac DSF Fac Ext Cet Arc Hub Fac Res Qua Res Total 14663 | 48 288 284 490 124 154 527 1861 293 1837 466 446 153 340 176 72 590 1285 590 124 398 925 2020 1021 151 Wait 1385 | 2 12 2 61 21 1 28 66 35 231 21 20 . 9 . . 32 167 208 18 59 208 147 13 24 Move 12189 | 40 223 258 352 67 137 392 1701 248 1485 439 416 152 329 171 60 537 974 355 105 318 648 1790 893 99 Hop 76 | . . 6 . . 2 4 7 . 11 5 . . . 1 1 1 1 2 1 4 1 9 20 . Pick Up 101 | . 13 3 10 2 2 4 5 2 17 . 1 . . 1 2 3 7 4 . 1 3 10 9 2 Fast Attach 182 | 6 7 2 11 4 3 6 19 3 18 . . . . 1 2 2 27 1 . 4 11 24 30 1 Attach 77 | . . 1 5 4 1 6 7 . 4 . . . . 2 1 2 9 3 . 3 6 13 7 3 Detach 36 | . . . . . 1 4 4 . 2 . . . . . . . 6 1 . 2 6 6 1 3 Swap 64 | . 1 2 7 . . 4 1 . 17 1 2 . 1 . 4 3 14 1 . . 3 1 2 . Drop 162 | . 7 4 9 6 3 1 17 5 33 . . . . . 2 3 21 6 . 2 12 6 25 . Fire 128 | . 24 6 35 18 4 13 3 . 2 . 1 . . . . . 10 7 . . . 3 2 . Melee 126 | . . . . . . 2 27 . 17 . 6 1 1 . . 3 23 2 . 5 9 11 18 1 Ram 2 | . . . . 2 . . . . . . . . . . . . . . . . . . . . Kick 1 | . 1 . . . . . . . . . . . . . . . . . . . . . . . Crush . | . . . . . . . . . . . . . . . . . . . . . . . . . Escape Stasis 119 | . . . . . . 63 . . . . . . . . . 4 15 . . . 18 . 1 18 Rewire 15 | . . . . . . . 4 . . . . . . . . . 11 . . . . . . . Trap . | . . . . . . . . . . . . . . . . . . . . . . . . . Miscellaneous . | . . . . . . . . . . . . . . . . . . . . . . . . . Route ------- -11/Scrapyard -10/Materials -10/Mines -9/Materials -8/Materials -8/Storage -8/Garrison (discovered 2 exits: *Fac x2) -7/Factory (discovered 2 exits: *Low x2) -7/Waste -7/Factory (discovered 5 exits: *Fac x3 / *Low x2) -7/Lower Caves -7/Lower Caves (discovered 2 exits: *Fac / *Zio) -7/Zion -6/Proximity Caves -6/Factory (discovered 2 exits: *Low / DSF) -6/DSF -5/Factory (discovered 4 exits: *Upp x2 / *Ext x2) -5/Extension (discovered 3 exits: *Fac x2 / *Cet) -5/Cetus (discovered 2 exits: *Fac / *Arc) -5/Archives (discovered 3 exits: *Fac / [*Hub x2]) -5/Hub_04(d) (discovered 2 exits: *Fac x2) -4/Factory (discovered 4 exits: *Res x4) -3/Research (discovered 5 exits: *Res x2 / Arm / *Qua x2) -3/Quarantine -2/Research History --------- Turn | Location | Event 8 | -11/Scrapyard | Discovered new exit (range 15) 58 | -11/Scrapyard | Entered Materials 227 | -10/Materials | Discovered new exit (range 16) 314 | -10/Materials | Build established: Mutant 441 | -10/Materials | Entered Mines 494 | -10/Mines | Assisted by bots powering up and referring to "LRC-V3" 518 | -10/Mines | Assembled infested the area 547 | -10/Mines | Met 8R-AWN 548 | -10/Mines | Met a Derelict bent on vengeance 559 | -10/Mines | Core integrity fell below 50% 563 | -10/Mines | Core integrity fell below 20% 594 | -10/Mines | Learned Materials stockpile data 598 | -10/Mines | Lost 3 parts (1p1u1w) 625 | -10/Mines | Discovered new exit (range 9) 629 | -10/Mines | Entered Materials 629 | -9/Materials | Evolved 2 slots: Propulsion x2 760 | -9/Materials | Lost 3 parts (3n) 862 | -9/Materials | Discovered new exit (range 15) 950 | -9/Materials | Entered another Materials area 950 | -8/Materials | Evolved 2 slots: Power x1, Propulsion x1 954 | -8/Materials | Discovered new exit (range 16) 1053 | -8/Materials | Entered Storage 1115 | -8/Storage | Identified exit to Garrison 1116 | -8/Storage | Entered Garrison 1122 | -8/Garrison | Lost 3 parts (1p1n1u) 1151 | -8/Garrison | Triggered checkpoint 1208 | -8/Garrison | Destroyed 7 combat bots 1210 | -8/Garrison | Lost 5 parts (1p3n1u) 1258 | -8/Garrison | Triggered checkpoint 1274 | -8/Garrison | Triggered checkpoint 1332 | -8/Garrison | Triggered checkpoint 1338 | -8/Garrison | Garrison Relay disabled 1348 | -8/Garrison | Discovered new exit (range 10) 1372 | -8/Garrison | Lost 3 parts (1p2n) 1381 | -8/Garrison | Garrison Relay disabled 1392 | -8/Garrison | Triggered checkpoint 1398 | -8/Garrison | Discovered new exit (range 10) 1403 | -8/Garrison | Installed Relay Interface Framework 1404 | -8/Garrison | Entered Factory 1404 | -7/Factory | Evolved 2 slots: Propulsion x1, Utility x1 1499 | -7/Factory | Discovered new exit (range 12) 1615 | -7/Factory | Fabricated Lgt. Antimatter Reactor? 1778 | -7/Factory | Identified exit to Lower Caves 1780 | -7/Factory | Build established: Hacker-Sprinter 2115 | -7/Factory | Lost 3 parts (3n) 2246 | -7/Factory | Sucked down chute 2246 | -7/Factory | Entered Waste 2247 | -7/Waste | Joined by Warlord forces that had cleared the area 2314 | -7/Waste | Discovered new exit (range 12) 2394 | -7/Waste | Entered Factory 2394 | -7/Factory | Accompanied by 20 allies 2539 | -7/Factory | Discovered new exit (range 13) 2685 | -7/Factory | Fabricated X-62 Marksman (x2) 2811 | -7/Factory | Discovered new exit (range 9) 2816 | -7/Factory | Identified exit to Factory 3049 | -7/Factory | Discovered exit to Factory (range 9) 3050 | -7/Factory | Build established: Sprinter 3178 | -7/Factory | Entered Lower Caves 3188 | -7/Lower Caves | Spotted B-75 Beast 3268 | -7/Lower Caves | Encountered a Warlord checkpoint 3306 | -7/Lower Caves | Discovered new exit (range 8) 3307 | -7/Lower Caves | Identified exit to Lower Caves 3308 | -7/Lower Caves | Entered another Lower Caves area 3315 | -7/Lower Caves | Discovered exit to Factory (range 15) 3445 | -7/Lower Caves | Discovered new exit (range 5) 3446 | -7/Lower Caves | Encountered a Warlord checkpoint 3451 | -7/Lower Caves | Identified exit to Zion 3451 | -7/Lower Caves | Entered Zion 3477 | -7/Zion | System corruption cleaned by Quarantine Array 3480 | -7/Zion | Discovered new exit (range 16) 3490 | -7/Zion | Identified exit to Proximity Caves 3491 | -7/Zion | Entered Proximity Caves 3547 | -6/Proximity Caves | Spotted B-75 Beast 3566 | -6/Proximity Caves | Learned 4 Factory zone layouts 3581 | -6/Proximity Caves | Discovered exit to Factory (range 12) 3584 | -6/Proximity Caves | Entered Factory 3584 | -6/Factory | Evolved 2 slots: Propulsion x1, Utility x1 3605 | -6/Factory | Discovered new exit (range 5) 3606 | -6/Factory | Identified exit to Lower Caves 3624 | -6/Factory | Identified exit to DSF 3624 | -6/Factory | Entered DSF 3647 | -6/DSF | Discovered new exit (range 15) 3649 | -6/DSF | Identified exit to Factory 3649 | -6/DSF | Entered Factory 3649 | -5/Factory | Evolved 2 slots: Propulsion x2 3705 | -5/Factory | Discovered new exit (range 5) 3706 | -5/Factory | Identified exit to Upper Caves 3760 | -5/Factory | Identified exit to Extension 3792 | -5/Factory | Entered Extension 3794 | -5/Extension | Disrupted transfer network 3802 | -5/Extension | Rescued a captive Derelict 3853 | -5/Extension | Rescued a captive Derelict 3882 | -5/Extension | Rescued a captive Derelict 3883 | -5/Extension | Rescued a captive Derelict 3886 | -5/Extension | Rescued a captive Derelict 3888 | -5/Extension | Rescued a captive Derelict 3900 | -5/Extension | Rescued a captive Derelict 3901 | -5/Extension | Rescued a captive Derelict 3923 | -5/Extension | Lost 3 parts (2n1u) 3938 | -5/Extension | Rescued a captive Derelict 4045 | -5/Extension | Energy Cycler disabled 4046 | -5/Extension | Rescued a captive Derelict 4046 | -5/Extension | Rescued a captive Derelict 4047 | -5/Extension | Rescued a captive Derelict 4051 | -5/Extension | Rescued a captive Derelict 4054 | -5/Extension | Rescued a captive Derelict 4058 | -5/Extension | Spotted B-75 Beast 4059 | -5/Extension | Spotted B-75 Beast 4060 | -5/Extension | Discovered new exit (range 16) 4083 | -5/Extension | Rescued A7 4092 | -5/Extension | Lost 7 parts (2p4n1u) 4219 | -5/Extension | Lost 4 parts (2n2u) 4552 | -5/Extension | Discovered new exit (range 10) 4553 | -5/Extension | Discovered new exit (range 6) 4559 | -5/Extension | Identified exit to Factory 4573 | -5/Extension | Entered Cetus 4573 | -5/Cetus | Accompanied by 1 ally (A7) 4576 | -5/Cetus | Spotted Cetus Guard 4578 | -5/Cetus | Acquired a Cetus Manufacturing Module code from A7 4578 | -5/Cetus | Spotted Cetus Guard 4581 | -5/Cetus | Spotted Cetus Guard 4581 | -5/Cetus | Spotted Cetus Guard 4598 | -5/Cetus | Allies destroyed Cetus Guard 4624 | -5/Cetus | Lost 5 parts (2n2u1w) 4648 | -5/Cetus | Started Cetus Manufacturing Module 4656 | -5/Cetus | Escorted A7 to Cetus Mainframe 4673 | -5/Cetus | Manufactured an Enhanced Grunt 4698 | -5/Cetus | Manufactured an Enhanced Grunt 4723 | -5/Cetus | Manufactured an Enhanced Grunt 4748 | -5/Cetus | Manufactured an Enhanced Grunt 4765 | -5/Cetus | Build established: Scavenger-Sprinter 4773 | -5/Cetus | Manufactured an Enhanced Grunt 4782 | -5/Cetus | Discovered new exit (range 20) 4799 | -5/Cetus | Spotted Cetus Guard 4800 | -5/Cetus | Spotted Cetus Guard 4800 | -5/Cetus | Spotted Cetus Guard 4800 | -5/Cetus | Spotted Cetus Guard 4836 | -5/Cetus | Allies destroyed Cetus Guard 4838 | -5/Cetus | Allies destroyed Cetus Guard 4844 | -5/Cetus | Destroyed Cetus Guard 4845 | -5/Cetus | Allies destroyed Cetus Guard 4854 | -5/Cetus | Discovered exit to Factory (range 19) 4857 | -5/Cetus | Met Revision 17 4898 | -5/Cetus | Entered Archives 4898 | -5/Archives | Accompanied by 6 allies (A7) 4902 | -5/Archives | Met Zhirov 4903 | -5/Archives | Discovered new exit (range 20) 4904 | -5/Archives | Unable to access archive contents 4905 | -5/Archives | Received a hacking code to weaken MAIN.C 4906 | -5/Archives | Discovered exit to Factory (range 17) 4907 | -5/Archives | Unable to access archive contents 4908 | -5/Archives | Reinforcements dispatched to Archives 4908 | -5/Archives | Discovered new exit (range 17) 4910 | -5/Archives | Read partially decrypted archive contents 4927 | -5/Archives | Local machine network offline 4941 | -5/Archives | Entered Hub_04(d) 4941 | -5/Hub_04(d) | Accompanied by 5 allies 4997 | -5/Hub_04(d) | Garrison activated, responded to threat 5010 | -5/Hub_04(d) | Discovered exit to Factory (range 13) 5055 | -5/Hub_04(d) | Discovered exit to Factory (range 11) 5059 | -5/Hub_04(d) | Spotted B-75 Beast 5100 | -5/Hub_04(d) | Network Hub disabled 5100 | -5/Hub_04(d) | Network Hub disabled 5101 | -5/Hub_04(d) | Core integrity fell below 50% 5104 | -5/Hub_04(d) | Entered Factory 5104 | -4/Factory | Evolved 2 slots: Power x1, Utility x1 5234 | -4/Factory | Fabricated Imp. Phase Shifter (x1) 5388 | -4/Factory | Spotted B-86 Titan 5448 | -4/Factory | Identified exit to Research 5498 | -4/Factory | Spotted B-86 Titan 5604 | -4/Factory | First assault squad dispatched 5653 | -4/Factory | Entered Research 5653 | -3/Research | Evolved 2 slots: Propulsion x1, Utility x1 5748 | -3/Research | Discovered new exit (range 4) 5758 | -3/Research | Build established: Mutant 5853 | -3/Research | Revision forces began assault on 0b10 5871 | -3/Research | Spotted B-86 Titan 5884 | -3/Research | Lost 7 parts (2n4u1w) 5929 | -3/Research | Met up with Revision 17++ 5967 | -3/Research | Found Prototype Processor 5967 | -3/Research | Identified Exp. Targeting Computer 6129 | -3/Research | Core integrity fell below 50% 6155 | -3/Research | Found Prototype Device 6155 | -3/Research | Identified Exp. EM Disruption Field 6299 | -3/Research | Discovered new exit (range 18) 6310 | -3/Research | Identified exit to Armory 6310 | -3/Research | Identified exit to Quarantine 6324 | -3/Research | Fabricated G-67 Veteran? 6353 | -3/Research | Research terminal network offline 6527 | -3/Research | Entered Quarantine 6530 | -3/Quarantine | Spotted Alpha 7 6600 | -3/Quarantine | Found Alien Artifact 6600 | -3/Quarantine | Identified Phase Redirector 6650 | -3/Quarantine | Found Alien Artifact 6650 | -3/Quarantine | Identified Terrabomb 6650 | -3/Quarantine | Used Terrabomb 6664 | -3/Quarantine | Discovered new exit (range 5) 6669 | -3/Quarantine | Found Alien Artifact 6669 | -3/Quarantine | Identified Subatomic Replicator 6716 | -3/Quarantine | Identified exit to Research 6775 | -3/Quarantine | Crushed by falling debris 6776 | -3/Quarantine | System corruption reached 10% 6809 | -3/Quarantine | Search patrols dispatched 6836 | -3/Quarantine | Found Prototype Device 6836 | -3/Quarantine | Identified Exp. Focal Shield 6868 | -3/Quarantine | Used Subatomic Replicator to replicate Impulse Thruster Array 6903 | -3/Quarantine | Found Alien Artifact 6907 | -3/Quarantine | Found Alien Artifact 6908 | -3/Quarantine | Identified Transdimensional Reconstructor 6908 | -3/Quarantine | Warped through subspace 6911 | -3/Quarantine | Found Alien Reactor 6916 | -3/Quarantine | Identified Hpw. Transdimensional Reconstructor 6916 | -3/Quarantine | Warped through subspace 6931 | -3/Quarantine | Core integrity fell below 20% 6947 | -3/Quarantine | Found Fusion Bomb Launcher 6949 | -3/Quarantine | Found Fusion Bomb Launcher 6953 | -3/Quarantine | Lost 17 parts (2p10n4u1w) 6967 | -3/Quarantine | Entered Research 6967 | -2/Research | Evolved 2 slots: Utility x2 6968 | -2/Research | Identified Matter Drive 7016 | -2/Research | Spotted B-90 Cyclops 7088 | -2/Research | Self-destructed Last Messages --------------- 07023_ Field strength at 75. 07024_ Field strength at 70. 07025_ Field strength at 65. 07026_ Field strength at 60. 07027_ Field strength at 55. 07028_ Field strength at 50. 07029_ Field strength at 45. 07030_ Field strength at 40. 07031_ Field strength at 35. 07032_ Field strength at 30. 07033_ Field strength at 25. 07034_ Field strength at 20. 07037_ Field strength at 15. 07038_ Field strength at 10. 07039_ Field strength at 5. 07040_ Stasis field depleted. 07057_ ALERT: All DSF locations entering lockdown mode. 07061_ B-90 Cyclops activates siege mode. 07064_ Acquired Field Propulsion Array. 07069_ Impulse Thruster Array destroyed. Map ----- +----------------------------------------------------+ | ??????## #????????????????????? | | ??????+ ! #????????????????????? | | ??????# #####+##### #????????????????????? | | ??????# ## # #?????????????????????? | | ??????# ## ! + #?????????????????????? | | ??????# ## # +???? ?????????????? | | ??##### ## """" " # """"???????????????? | | ??# #^ + """" + / """"???????????????? | | ??# # # """" """"""## """"???????????????? | | ??# # # """" # ## ?????????????? | | ???# " " "#? ?????????????? | | ???# " "]! ##?? ????????????? | | ???# """"""""""]! #????#+#####???????????? | | ???# ####! #??????????????????????? | | ??##+##+##### #??##""###??????????????????????? | | ??# # #??# #??????????????????????? | | ??#= # #??# #??????????????????????? | | ??# """" # #??# #??????????????????????? | | ??# """" # #??# #??????????????????????? | | ??# """" # #??# ! #??????????????????????? | | ??# """" + #??# #??????????????????????? | | ??# # #??# #???? #????????????????? | | ??# # #####+####### #????????????????? | | ??######+#### #????????????????? | | ????????????# #????????????????? | | ????????????###########@#######????????????????? | | ????????????????# #????????????????? | | ????????????????# #????????????????? | | ????????????????# p #????????????????? | | ????????????????# #????????????????? | | ????????????????# #????????????????? | | ????????????????# #????????????????? | | ?????????????########+#########????????????????? | | ?????????????# #????????????????????????? | | ?????????????# #????????????????????????? | | ?????????????# #????????????????????????? | | ?????????????# #????????????????????????? | | ?????????????# #????????????????????????? | | ?????????????# #????????????????????????? | | ?????????????# #????????????????????????? | | ?????????????# #????????????????????????? | | ???????#?????# #????????????????????????? | | ???????# ######+####????????????????????????? | | ???????# #????????????????????????? | | ???????+ #????????????????????????? | | ???????# #????????????????????????? | | ???????# #????????????????????????? | | ???????##+#############????????????????????????? | | ???????????????????????????????????????????????? | | ???????????????????????????????????????????????? | +----------------------------------------------------+ Best States ------------- Heat Dissipation 67 Coolant Potential 80 Energy Generation 53 Energy Capacity 555 Matter Stores 300 Matter Capacity 300 Sight Range 20 Robot Scan Range 16 Terrain Scan Density 10 Jamming Range 14 Power Amplification 50 Additional Mass Support 12 Base Temperature (-) 200 Armor Coverage 450 Resistance: KI 30 Phase Shifting 10 Evasion (%) 81 Targeting Accuracy 12 Melee Accuracy 6 Offensive Hacking 10 Defensive Hacking 10 Relay Coupler Types 1 Relay Coupler Value 29 Authchip Count 2 Item Schematics ----------------- Fission Core | -7/Zion | Archive Gauss Cannon | -7/Zion | Archive Remote Datajack | -7/Zion | Archive Force Field | -7/Zion | Archive Enh. Gauss Cannon | -7/Zion | Archive Component Analysis Suite | -7/Zion | Archive Imp. Trap Scanner | -7/Zion | Archive Imp. Medium Armor Plating | -7/Zion | Archive Focal Shield | -7/Zion | Archive Med. Treads | -7/Zion | Archive Enh. Optical Array | -7/Zion | Archive Mak. Axe | -7/Zion | Archive Hyp. Coil Gun | -7/Zion | Archive Ripper | -7/Zion | Archive Proton Cannon | -7/Zion | Archive Imp. KE Penetrator | -7/Zion | Archive Biometal Medium Treads | -5/Extension | Hacked Robot Schematics ------------------ L-41 Fighter | -7/Zion | Archive B-36 Bruiser | -7/Zion | Archive T-07 Excavator | -7/Zion | Archive B-60 Warrior | -5/Extension | Hacked Fabricated ------------ Lgt. Antimatter Reactor | x2 | -7/Factory | Preloaded X-62 Marksman | x2 | -7/Factory | Preloaded Imp. Phase Shifter | x1 | -4/Factory | Preloaded G-67 Veteran | x3 | -3/Research | Preloaded Alien Tech Used ----------------- Phase Redirector Terrabomb Subatomic Replicator Transdimensional Reconstructor High-powered Transdimensional Reconstructor Matter Drive Achievements -------------- None Challenges ------------ None Game ------ Seed SignalChromaticStabilizer Manual? 0 Play Time 03:22:38 Cumulative 125.1 hours Start 2022.05.28 @ 14:25:58 End 2022.05.30 @ 01:13:42 Sessions 3 Manual Loads 0 Difficulty Rogue Special Mode None Game No. 50 Rogue 50 Adventurer 0 Explorer 0 Win Type - Total 3 Types 2/0/1/0/0/0/0/0/0 Lore% 41 Gallery% 66 Achievement% 71 Wizard Run 0 Options --------- ASCII 0 Keyboard 0 Movement Numpad Keybinds 0 Fullscreen 1 Font 24/Smallcaps Map View 76x50 Tactical HUD 1 Map Filters NONE Filters LOW_CONTRAST(13,24,33) Steam 1 RUN: d8964739-928d-454a-9a6b-4ad0bb5cf8be